bitfinex/quotes_BTCUSD_20251207
["timestamp","ask_amount","ask_price","bid_price","bid_amount"]
[1765134657514,0.02630757,91509.0,91497.0,1.96893938]
[1765134657797,0.02630757,91509.0,91497.0,1.99369938]
[1765134658145,0.02630757,91509.0,91497.0,1.94499838]
[1765134658304,0.01092836,91505.0,91497.0,1.15814738]
[1765134658506,0.01092836,91505.0,91497.0,1.13338738]
[1765134659111,0.01092848,91504.0,91497.0,1.13338738]
[1765134659498,0.01092884,91501.0,91497.0,0.51037438]
[1765134659702,0.0109286,91503.0,91497.0,0.43205038]
[1765134659925,0.01092848,91504.0,91497.0,0.43205038]
[1765134660331,0.0109286,91503.0,91497.0,0.36281238]
[1765134660550,0.22949326,91506.0,91497.0,0.36281238]
[1765134660730,0.00123394,91498.0,91497.0,0.37906238]
[1765134661111,0.00223394,91498.0,91497.0,0.37906238]
[1765134661280,0.00023394,91498.0,91497.0,0.40382238]
[1765134661784,0.00223394,91498.0,91497.0,0.40382238]
[1765134662544,0.00223394,91498.0,91497.0,0.36281238]
[1765134662676,0.2497106,91498.0,91495.0,0.0391194]
[1765134662879,0.2497106,91498.0,91493.0,0.0391194]
[1765134662880,0.24587029,91496.0,91493.0,0.0391194]
[1765134663101,0.01537969,91495.0,91493.0,0.0391194]
[1765134663328,0.01537969,91495.0,91492.0,0.01728]
[1765134663329,0.02792211,91495.0,91492.0,0.01728]
[1765134663519,0.02792211,91495.0,91490.0,0.0391194]
[1765134663520,0.02727979,91493.0,91490.0,0.0391194]
[1765134663729,0.01093015,91490.0,91487.0,0.05004991]
[1765134663940,0.02795,91488.0,91487.0,0.0391194]
[1765134664341,0.05122,91488.0,91487.0,0.0391194]
[1765134664537,0.05122,91488.0,91486.0,0.0391194]
[1765134665073,0.02795,91488.0,91486.0,0.0391194]
[1765134665271,0.2691608,91487.0,91484.0,0.0391194]
[1765134665470,0.23496507,91485.0,91479.0,0.1864194]
[1765134665704,0.21862221,91483.0,91479.0,0.18653787]
[1765134665909,0.21862477,91481.0,91479.0,0.14741847]
[1765134666112,0.01635,91480.0,91479.0,0.14741847]
[1765134666329,0.00161287,91481.0,91480.0,0.13001]
[1765134667064,0.00161287,91481.0,91480.0,0.129484]
[1765134667065,0.00261287,91481.0,91480.0,0.129484]
[1765134667315,0.01896287,91481.0,91480.0,0.118512]
[1765134667522,0.01796287,91481.0,91480.0,0.118512]
[1765134667870,0.001,91481.0,91480.0,0.33713902]
[1765134668094,0.001,91481.0,91480.0,0.4394724]
[1765134668307,0.004,91481.0,91480.0,0.400353]
[1765134668959,0.004,91481.0,91480.0,0.723353]
[1765134669176,0.01092872,91502.0,91497.0,0.43010638]
[1765134669592,0.01092884,91501.0,91497.0,0.41693038]
[1765134669947,0.0109286,91503.0,91497.0,0.45794038]
[1765134670380,0.01092872,91502.0,91497.0,0.45794038]
[1765134670781,0.01092884,91501.0,91497.0,0.21459398]
[1765134670990,0.01092908,91499.0,91495.0,0.01092955]
[1765134671192,0.0116,91497.0,91495.0,0.01092955]
[1765134671395,0.0116,91497.0,91496.0,0.32069979]
[1765134671599,0.00023394,91498.0,91497.0,0.24627598]
[1765134671802,0.00023394,91498.0,91497.0,0.26292598]
[1765134672043,0.00323394,91498.0,91497.0,0.26292598]
[1765134672241,0.00123394,91498.0,91497.0,0.26292598]
[1765134673440,0.00123394,91498.0,91497.0,0.22931798]
[1765134673642,0.00123394,91498.0,91497.0,0.13102698]
[1765134674033,0.00123394,91498.0,91497.0,0.16420698]
[1765134674323,0.00423394,91498.0,91497.0,0.16420698]
[1765134674924,0.00423394,91498.0,91497.0,0.158653]
[1765134675129,0.00423394,91498.0,91497.0,0.20511698]
[1765134675431,0.00423394,91498.0,91497.0,0.16420698]
[1765134675766,0.00423394,91498.0,91497.0,0.108823]
[1765134676293,0.00423394,91498.0,91497.0,0.13102698]
[1765134678160,0.00423394,91498.0,91497.0,0.1702222]
[1765134679418,0.00423394,91498.0,91497.0,0.13102698]
[1765134680034,0.00423394,91498.0,91496.0,0.21858856]
[1765134680747,0.00423394,91498.0,91497.0,0.143276]
[1765134680985,0.00123394,91498.0,91497.0,0.143276]
[1765134681223,0.00023394,91498.0,91497.0,0.143276]
[1765134681421,0.00323394,91498.0,91497.0,0.143276]
[1765134681645,0.00123394,91498.0,91497.0,0.20638998]
[1765134681871,0.00323394,91498.0,91497.0,0.20638998]
[1765134682385,0.00423394,91498.0,91497.0,0.18212998]
[1765134683053,0.00423394,91498.0,91497.0,0.03885398]
[1765134683272,0.00423394,91498.0,91497.0,0.02220398]
[1765134683735,0.01092932,91497.0,91494.0,0.05879284]
[1765134683933,0.23453117,91495.0,91494.0,0.05879284]
[1765134684136,0.22952323,91494.0,91492.0,0.05879284]
[1765134684342,0.2549761,91494.0,91492.0,0.05879284]
[1765134684573,0.03978,91493.0,91492.0,0.05879284]
[1765134684790,0.21859834,91492.0,91485.0,0.05879284]
[1765134684986,0.25999121,91492.0,91489.0,0.03928524]
[1765134685154,0.25999121,91492.0,91482.0,0.03928524]
[1765134685355,0.25999121,91492.0,91483.0,0.03928524]
[1765134685929,0.25999121,91492.0,91482.0,0.03928524]
[1765134686546,0.27727121,91492.0,91482.0,0.03928524]
[1765134686743,0.27727121,91492.0,91481.0,0.03928524]
[1765134687366,0.28527121,91492.0,91481.0,0.03928524]
[1765134687564,0.28527121,91492.0,91478.0,0.03928524]
[1765134687565,0.28027121,91492.0,91478.0,0.03928524]
[1765134687778,0.21862702,91480.0,91477.0,0.03928524]
[1765134687980,0.24616702,91480.0,91474.0,0.03928524]
[1765134688186,0.27000702,91480.0,91474.0,0.03928524]
[1765134689021,0.05438,91480.0,91474.0,0.0502173]
[1765134689217,0.27300702,91480.0,91476.0,0.05021706]
[1765134689421,0.27300702,91480.0,91477.0,0.0109317]
[1765134689569,0.27300702,91480.0,91474.0,0.03928524]
[1765134689773,0.27300702,91480.0,91474.0,0.0502173]
[1765134690183,0.27000702,91480.0,91475.0,0.03928524]
[1765134690385,0.25116702,91480.0,91477.0,0.02220398]
[1765134691007,0.27500702,91480.0,91474.0,0.03928524]
[1765134692394,0.27500702,91480.0,91473.0,0.03928524]
[1765134693365,0.27500702,91480.0,91473.0,0.05021742]
[1765134693565,0.27500702,91480.0,91473.0,0.01093218]
[1765134693959,0.27500702,91480.0,91474.0,0.01093206]
[1765134694661,0.23522702,91480.0,91474.0,0.01093206]
[1765134695021,0.27500702,91480.0,91471.0,0.03928524]
[1765134695234,0.27500702,91480.0,91472.0,0.0109323]
[1765134695450,0.27500702,91480.0,91471.0,0.01093242]
[1765134695653,0.27500702,91480.0,91470.0,0.05021778]
[1765134695832,0.27500702,91480.0,91474.0,0.01093206]
[1765134696418,0.27500702,91480.0,91476.0,0.01093182]
[1765134696767,0.27500702,91480.0,91475.0,0.01093194]
[1765134696950,0.27500702,91480.0,91474.0,0.01093206]
[1765134697147,0.27500702,91480.0,91470.0,0.03928524]
[1765134697319,0.27500702,91480.0,91472.0,0.0109323]
[1765134697545,0.27500702,91480.0,91473.0,0.01093218]
[1765134697753,0.27500702,91480.0,91472.0,0.0109323]
[1765134698117,0.27500702,91480.0,91474.0,0.01093206]
[1765134698522,0.27500702,91480.0,91470.0,0.01093254]
[1765134698680,0.27500702,91480.0,91474.0,0.01093206]
[1765134698899,0.27500702,91480.0,91473.0,0.01093218]
[1765134699099,0.27500702,91480.0,91472.0,0.0109323]
[1765134699434,0.27500702,91480.0,91473.0,0.01093218]
[1765134699715,0.27500702,91480.0,91472.0,0.0109323]
[1765134700332,0.27500702,91480.0,91473.0,0.01093218]
[1765134700538,0.27500702,91480.0,91474.0,0.01093206]
[1765134701041,0.27500702,91480.0,91472.0,0.0109323]
[1765134701239,0.27500702,91480.0,91470.0,0.01093254]
[1765134701643,0.27500702,91480.0,91469.0,0.0502179]
[1765134701852,0.27500702,91480.0,91470.0,0.01093254]
[1765134702050,0.27500702,91480.0,91469.0,0.0502179]
[1765134702254,0.27500702,91480.0,91470.0,0.21864934]
[1765134702487,0.27500702,91480.0,91470.0,0.01093254]
[1765134702868,0.27500702,91480.0,91472.0,0.0109323]
[1765134703072,0.27500702,91480.0,91474.0,0.01093206]
[1765134703364,0.23522702,91480.0,91479.0,0.02232245]
[1765134703576,0.25075702,91480.0,91479.0,0.00011847]
[1765134704934,0.005,91480.0,91479.0,0.00011847]
[1765134705162,0.005,91480.0,91479.0,0.06205245]
[1765134705361,0.005,91480.0,91479.0,0.26336245]
[1765134705753,0.003,91480.0,91479.0,0.60364245]
[1765134706105,0.004,91480.0,91479.0,0.60364245]
[1765134706429,0.001,91480.0,91479.0,0.60364245]
[1765134706545,0.01092955,91495.0,91492.0,0.02220398]
[1765134706948,0.01537969,91494.0,91493.0,0.01168]
[1765134707203,0.23397325,91494.0,91493.0,0.01168]
[1765134707412,0.22952307,91495.0,91493.0,0.01168]
[1765134707606,0.01537969,91494.0,91493.0,0.01168]
[1765134708912,0.21859356,91494.0,91493.0,0.01168]
[1765134709093,0.23397325,91494.0,91493.0,0.01168]
[1765134709275,0.23397325,91494.0,91492.0,0.02220398]
[1765134709475,0.23597325,91494.0,91492.0,0.02220398]
[1765134709673,0.23797325,91494.0,91492.0,0.02220398]
[1765134709879,0.004,91494.0,91492.0,0.02220398]
[1765134710084,0.22059373,91494.0,91492.0,0.02220398]
[1765134710379,0.01737969,91494.0,91492.0,0.02220398]
[1765134710804,0.01837969,91494.0,91492.0,0.02220398]
[1765134711594,0.24541595,91493.0,91492.0,0.02220398]
[1765134711838,0.01092991,91492.0,91489.0,0.03922251]
[1765134712152,0.01553,91490.0,91488.0,0.03922251]
[1765134712357,0.01553,91490.0,91489.0,0.03922251]
[1765134713060,0.22953296,91491.0,91489.0,0.03922251]
[1765134713290,0.01093003,91491.0,91489.0,0.03922251]
[1765134713433,0.01093003,91491.0,91490.0,0.03922251]
[1765134714036,0.06764259,91491.0,91490.0,0.03922251]
[1765134714216,0.22953578,91489.0,91486.0,0.03922251]
[1765134714421,0.01537969,91488.0,91486.0,0.03922251]
[1765134714620,0.01553,91487.0,91486.0,0.03922251]
[1765134715216,0.25833029,91487.0,91486.0,0.03922251]
[1765134715671,0.25933029,91487.0,91486.0,0.03922251]
[1765134715868,0.21961029,91487.0,91486.0,0.03922251]
[1765134716639,0.21861029,91487.0,91486.0,0.03922251]
[1765134718202,0.21961029,91487.0,91486.0,0.03922251]
[1765134719198,0.001,91487.0,91486.0,0.41894851]
[1765134719341,0.001,91487.0,91486.0,0.43759998]
[1765134722134,0.001,91487.0,91486.0,0.321562]
[1765134722324,0.21460806,91488.0,91486.0,0.24882598]
[1765134722504,0.21460806,91488.0,91487.0,0.02220398]
[1765134722935,0.22954564,91486.0,91483.0,0.05883377]
[1765134723138,0.01602,91484.0,91483.0,0.05883377]
[1765134723318,0.01093063,91486.0,91483.0,0.28838457]
[1765134723484,0.01093063,91486.0,91483.0,0.05883377]
[1765134723685,0.01254314,91489.0,91484.0,0.01093087]
[1765134723913,0.00161287,91489.0,91488.0,0.08933752]
[1765134724115,0.01092872,91502.0,91495.0,0.01092955]
[1765134724334,0.01132776,91510.0,91497.0,0.4954594]
[1765134724539,0.0004,91510.0,91497.0,0.4954594]
[1765134724712,0.0004,91510.0,91497.0,0.92387715]
[1765134724914,0.0004,91510.0,91497.0,0.8428394]
[1765134725135,0.0004,91510.0,91497.0,0.86504338]
[1765134725312,0.00123394,91498.0,91497.0,0.8428394]
[1765134725734,0.00023394,91498.0,91497.0,0.8428394]
[1765134725899,0.00023394,91498.0,91497.0,0.86504338]
[1765134726099,0.00123394,91498.0,91497.0,0.86504338]
[1765134726617,0.00123394,91498.0,91497.0,0.87004338]
[1765134727300,0.00023394,91498.0,91497.0,0.87004338]
[1765134727704,0.00023394,91498.0,91497.0,0.87104338]
[1765134728557,0.00023394,91498.0,91497.0,0.87541763]
[1765134730397,0.00023394,91498.0,91497.0,0.95276868]
[1765134730751,0.00023394,91498.0,91497.0,0.95476868]
[1765134731249,0.00023394,91498.0,91497.0,0.94976868]
[1765134731451,0.00023394,91498.0,91497.0,0.95676868]
[1765134731865,0.00023394,91498.0,91497.0,0.97404868]
[1765134732400,0.00023394,91498.0,91497.0,0.89569763]
[1765134734411,0.00023394,91498.0,91497.0,0.97404868]
[1765134735419,0.00023394,91498.0,91497.0,1.03657167]
[1765134735622,0.00023394,91498.0,91497.0,0.95822062]
[1765134736173,0.0004,91540.0,91529.0,0.21850998]
[1765134736386,0.0004,91540.0,91529.0,2.27381396]
[1765134736600,0.0004,91540.0,91529.0,1.88046796]
[1765134737360,0.0004,91540.0,91529.0,1.88484065]
[1765134737563,0.00031836,91530.0,91529.0,1.88484065]
[1765134737974,0.00031836,91530.0,91529.0,1.88584065]
[1765134738294,0.00031836,91530.0,91529.0,2.20984065]
[1765134740044,0.00031836,91530.0,91529.0,2.27236364]
[1765134740249,0.0004,91540.0,91539.0,2.30321307]
[1765134740454,0.0004,91540.0,91539.0,2.34157307]
[1765134740670,0.0004,91540.0,91539.0,2.66457307]
[1765134741912,0.0044,91540.0,91539.0,2.66457307]
[1765134742291,0.0056276,91540.0,91539.0,2.66457307]
[1765134742877,0.0056276,91540.0,91539.0,2.67020067]
[1765134743580,0.0016276,91540.0,91539.0,2.67220067]
[1765134743764,0.0036276,91540.0,91539.0,2.67220067]
[1765134743968,0.0036276,91540.0,91539.0,2.67020067]
[1765134744198,0.0036276,91540.0,91539.0,1.34467868]
[1765134744414,0.0036276,91540.0,91539.0,0.61314508]
[1765134744941,0.0036276,91540.0,91539.0,0.93614508]
[1765134746972,0.0036276,91540.0,91539.0,0.95342508]
[1765134750374,0.0036276,91540.0,91539.0,0.60788508]
[1765134750579,0.0036276,91540.0,91539.0,0.57478508]
[1765134750782,0.0036276,91540.0,91539.0,0.001]
[1765134750783,0.00524047,91540.0,91539.0,0.001]
[1765134750981,0.26368419,91540.0,91539.0,0.001]
[1765134751387,0.01092526,91531.0,91528.0,0.01129]
[1765134751605,0.00161287,91531.0,91528.0,0.01092561]
[1765134751830,0.23104375,91531.0,91526.0,0.01092585]
[1765134752153,0.23104375,91531.0,91516.0,0.22946794]
[1765134752154,0.01092633,91522.0,91516.0,0.22946794]
[1765134752348,0.01092633,91522.0,91519.0,0.109214]
[1765134752469,0.01092633,91522.0,91518.0,0.01092681]
[1765134753416,0.01092657,91520.0,91516.0,0.01104541]
[1765134753571,0.22945803,91520.0,91516.0,0.00011836]
[1765134753769,0.2310709,91520.0,91516.0,0.00011836]
[1765134754179,0.21853759,91518.0,91516.0,0.00011836]
[1765134754374,0.01642,91517.0,91516.0,0.00011836]
[1765134754583,0.03996,91517.0,91516.0,0.00011836]
[1765134755728,0.04196,91517.0,91516.0,0.00011836]
[1765134756915,0.04896,91517.0,91516.0,0.00011836]
[1765134757317,0.04951548,91517.0,91516.0,0.00011836]
[1765134763983,0.04751548,91517.0,91516.0,0.00011836]
[1765134764183,0.04051548,91517.0,91516.0,0.00011836]
[1765134764402,0.04751548,91517.0,91516.0,0.00011836]
[1765134765031,0.06289517,91517.0,91516.0,0.00011836]
[1765134767537,0.06263517,91517.0,91516.0,0.00011836]
[1765134776019,0.00755548,91517.0,91516.0,0.00011836]
[1765134776224,0.06308517,91517.0,91516.0,0.00011836]
[1765134776807,0.06108517,91517.0,91516.0,0.00011836]
[1765134777006,0.06308517,91517.0,91516.0,0.00011836]
[1765134777620,0.05808517,91517.0,91516.0,0.00011836]
[1765134777993,0.05808517,91517.0,91516.0,0.00311836]
[1765134780375,0.07023517,91517.0,91516.0,0.00311836]
[1765134782983,0.08751517,91517.0,91516.0,0.00311836]
[1765134783635,0.04270548,91517.0,91516.0,0.00311836]
[1765134783986,0.00255548,91517.0,91516.0,0.00311836]
[1765134784409,0.02618548,91517.0,91516.0,0.00311836]
[1765134784814,0.00255548,91517.0,91516.0,0.06512234]
[1765134785677,0.00255548,91517.0,91516.0,0.12363276]
[1765134785849,0.00255548,91517.0,91516.0,0.83915534]
[1765134786010,0.00255548,91517.0,91516.0,0.70835534]
[1765134786205,0.00255548,91517.0,91516.0,0.65419534]
[1765134786398,0.00255548,91517.0,91516.0,0.53609634]
[1765134787017,0.00255548,91517.0,91516.0,0.85909634]
[1765134787542,0.00255548,91517.0,91516.0,0.93741156]
[1765134788225,0.00055548,91517.0,91516.0,0.93760625]
[1765134788430,0.00055548,91517.0,91516.0,0.93560625]
[1765134788710,0.00055548,91517.0,91516.0,0.94560625]
[1765134789115,0.00055548,91517.0,91516.0,0.86709634]
[1765134789316,0.00055548,91517.0,91516.0,0.94557624]
[1765134789903,0.00055548,91517.0,91516.0,0.92337226]
[1765134790217,0.00055548,91517.0,91516.0,0.86709634]
[1765134790988,0.00055548,91517.0,91516.0,0.88437634]
[1765134791805,0.00055548,91517.0,91516.0,0.88337634]
[1765134792023,0.00055548,91517.0,91516.0,0.87337634]
[1765134792322,0.00055548,91517.0,91516.0,0.88037634]
[1765134792619,0.00055548,91517.0,91516.0,0.87937634]
[1765134794023,0.00055548,91517.0,91516.0,0.85717236]
[1765134794266,0.00055548,91517.0,91516.0,0.87937634]
[1765134795329,0.00055548,91517.0,91516.0,0.85717236]
[1765134795534,0.00055548,91517.0,91516.0,0.87937634]
[1765134798762,0.00055548,91517.0,91516.0,1.02667634]
[1765134801245,0.00055548,91517.0,91516.0,1.00447236]
[1765134801478,0.00055548,91517.0,91516.0,0.68147236]
[1765134801682,0.00055548,91517.0,91516.0,0.7402709]
[1765134802450,0.00055548,91517.0,91516.0,0.68147236]
[1765134804711,0.00055548,91517.0,91516.0,0.53417236]
[1765134804873,0.00055548,91517.0,91516.0,0.51081236]
[1765134805080,0.00055548,91517.0,91516.0,0.02339836]
[1765134805392,0.00055548,91517.0,91516.0,0.20284934]
[1765134806117,0.00055548,91517.0,91516.0,0.19684934]
[1765134806263,0.00055548,91517.0,91516.0,0.17357934]
[1765134806467,0.00055548,91517.0,91516.0,0.17757934]
[1765134806666,0.00055548,91517.0,91516.0,0.20084934]
[1765134808630,0.00055548,91517.0,91516.0,0.17757934]
[1765134809194,0.00055548,91517.0,91516.0,0.00411836]
[1765134809402,0.00055548,91517.0,91516.0,0.11720336]
[1765134815497,0.00055548,91517.0,91516.0,0.13370336]
[1765134815685,0.00055548,91517.0,91516.0,0.17917734]
[1765134817121,0.00055548,91517.0,91516.0,0.50327136]
[1765134817283,0.00055548,91517.0,91516.0,0.50217734]
[1765134817920,0.00055548,91517.0,91516.0,0.71200033]
[1765134818126,1.0,91520.0,91519.0,0.34520398]
[1765134818376,1.0,91520.0,91519.0,2.37301398]
[1765134818691,1.0,91520.0,91519.0,2.61481783]
[1765134819672,1.0,91520.0,91519.0,2.63181783]
[1765134820549,1.0,91520.0,91519.0,2.65369783]
[1765134821127,1.0,91520.0,91519.0,2.75192132]
[1765134821316,1.0,91520.0,91519.0,2.68649649]
[1765134821720,1.0,91520.0,91519.0,2.78471998]
[1765134821923,1.0,91520.0,91519.0,2.78074475]
[1765134822128,0.32796,91520.0,91519.0,2.81168726]
[1765134822548,0.32796,91520.0,91519.0,2.78074475]
[1765134822749,0.32796,91520.0,91519.0,2.74901948]
[1765134825307,0.32796,91520.0,91519.0,2.72713948]
[1765134828421,0.32796,91520.0,91519.0,2.87443948]
[1765134831274,0.32796,91520.0,91519.0,2.9527105]
[1765134832006,0.16272673,91520.0,91519.0,2.87443948]
[1765134835660,0.16272673,91520.0,91519.0,2.96993633]
[1765134835878,0.16272673,91520.0,91519.0,2.89167948]
[1765134836979,0.16272673,91520.0,91519.0,2.96994004]
[1765134837190,0.16272673,91520.0,91519.0,2.89167948]
[1765134837764,0.16272673,91520.0,91519.0,2.88867948]
[1765134837966,0.16272673,91520.0,91519.0,2.87467948]
[1765134838170,0.16272673,91520.0,91519.0,2.88767948]
[1765134841151,0.16249673,91520.0,91519.0,2.91862199]
[1765134841825,0.00023385,91525.0,91524.0,2.62624888]
[1765134842004,0.00023385,91525.0,91524.0,2.64520888]
[1765134842209,0.00023385,91525.0,91524.0,2.67399888]
[1765134842412,0.00023385,91525.0,91524.0,2.67837136]
[1765134843218,0.00023385,91525.0,91524.0,2.91197522]
[1765134843742,0.00023385,91525.0,91524.0,2.91397522]
[1765134844187,0.00023385,91525.0,91524.0,2.83567136]
[1765134846739,0.00023385,91525.0,91524.0,2.79038837]
[1765134849458,0.00023385,91525.0,91524.0,2.85291136]
[1765134849821,0.00023385,91525.0,91524.0,2.88385387]
[1765134850043,0.00023385,91525.0,91524.0,2.91557914]
[1765134850173,0.00023385,91525.0,91524.0,3.01341792]
[1765134850372,0.0004,91550.0,91539.0,0.62621307]
[1765134850576,0.0004,91550.0,91539.0,2.66241307]
[1765134850796,0.0004,91550.0,91539.0,2.69120307]
[1765134851004,0.0004,91550.0,91539.0,2.69557512]
[1765134851756,0.0004,91550.0,91549.0,2.56366622]
[1765134851883,0.0004,91550.0,91549.0,2.74637237]
[1765134852079,0.0004,91550.0,91549.0,2.85485854]
[1765134852733,0.0004,91550.0,91549.0,2.23015954]
[1765134852908,0.0004,91550.0,91549.0,0.78890737]
[1765134853106,0.0004,91550.0,91549.0,0.65716439]
[1765134854997,0.0034,91550.0,91549.0,0.51009824]
[1765134855551,0.0004,91550.0,91549.0,0.53197824]
[1765134855765,0.0054,91550.0,91549.0,0.53062824]
[1765134855902,0.0054,91550.0,91549.0,0.56053824]
[1765134858765,0.0054,91550.0,91549.0,0.88353824]
[1765134859120,0.00613052,91550.0,91549.0,0.88353824]
[1765134865215,0.29457324,91550.0,91549.0,0.276526]
[1765134865421,0.0109237,91544.0,91541.0,0.33392406]
[1765134865624,0.01092323,91548.0,91547.0,0.18258]
[1765134865750,0.0125361,91548.0,91546.0,0.172133]
[1765134866148,0.23100307,91548.0,91546.0,0.118817]
[1765134866745,0.23500307,91548.0,91546.0,0.118817]
[1765134867104,0.0165361,91548.0,91546.0,0.118817]
[1765134867465,0.00561287,91548.0,91546.0,0.118817]
[1765134868101,0.00161287,91548.0,91546.0,0.118817]
[1765134868316,0.00461287,91548.0,91546.0,0.118817]
[1765134869581,0.00461287,91548.0,91547.0,0.35171]
[1765134869996,0.00461287,91548.0,91547.0,0.276563]
[1765134870599,0.00461287,91548.0,91547.0,0.341843]
[1765134870803,0.00461287,91548.0,91547.0,0.36404698]
[1765134871203,0.00228496,91548.0,91547.0,0.36404698]
[1765134871417,0.00628496,91548.0,91547.0,0.311933]
[1765134871586,0.00628496,91548.0,91547.0,0.33413698]
[1765134872800,0.00628496,91548.0,91547.0,0.36404698]
[1765134875745,0.00628496,91548.0,91547.0,0.664843]
[1765134875929,0.00628496,91548.0,91547.0,0.74598278]
[1765134876318,0.00628496,91548.0,91547.0,0.68704698]
[1765134876946,0.00628496,91548.0,91547.0,0.74595102]
[1765134878292,0.00628496,91548.0,91547.0,0.78619903]
[1765134878453,0.00628496,91548.0,91547.0,0.81610903]
[1765134878838,0.00467209,91548.0,91547.0,0.77444499]
[1765134879240,0.00467209,91548.0,91547.0,0.77911708]
[1765134879847,0.00467209,91548.0,91547.0,0.98870622]
[1765134880061,0.00467209,91548.0,91547.0,0.98970622]
[1765134880234,0.0004,91550.0,91549.0,2.62618921]
[1765134880437,0.0004,91550.0,91549.0,2.64671921]
[1765134880670,0.0004,91550.0,91549.0,2.67662921]
[1765134881335,0.0004,91550.0,91549.0,2.67962921]
[1765134881530,0.0004,91550.0,91549.0,2.68362921]
[1765134884986,0.0004,91550.0,91549.0,2.71457172]
[1765134885188,0.0004,91550.0,91549.0,2.68362921]
[1765134887797,0.0004,91550.0,91549.0,2.82669536]
[1765134888131,0.0004,91550.0,91549.0,2.83069536]
[1765134888709,0.0004,91550.0,91549.0,2.82769536]
[1765134888936,0.0004,91550.0,91549.0,2.82969536]
[1765134891133,0.0004,91550.0,91549.0,2.83406692]
[1765134895761,0.0004,91550.0,91549.0,2.85594692]
[1765134896665,0.0004,91550.0,91549.0,0.25103778]
[1765134896666,0.01915,91550.0,91549.0,0.25103778]
[1765134896863,0.0004,91550.0,91549.0,0.06912265]
[1765134897217,0.0004,91550.0,91549.0,0.44815]
[1765134897417,0.0004,91550.0,91549.0,0.12515]
[1765134897802,0.0004,91550.0,91549.0,0.14507]
[1765134898006,0.0004,91550.0,91549.0,0.16712]
[1765134898187,0.0044,91550.0,91549.0,0.16712]
[1765134899225,0.0054,91550.0,91549.0,0.16712]
[1765134899418,0.0054,91550.0,91549.0,0.15638]
[1765134899808,0.0054,91550.0,91549.0,0.21846224]
[1765134900375,0.0054,91550.0,91546.0,0.05875109]
[1765134900376,0.01092311,91549.0,91546.0,0.05875109]
[1765134900617,0.01092311,91549.0,91546.0,0.534477]
[1765134900618,0.23721851,91547.0,91546.0,0.534477]
[1765134900795,0.23883138,91547.0,91546.0,0.323]
[1765134901171,0.04777287,91547.0,91546.0,0.160101]
[1765134901360,0.01092347,91546.0,91542.0,0.0501098]
[1765134901577,0.04821287,91546.0,91544.0,0.167731]
[1765134901771,0.02080287,91546.0,91545.0,0.21847178]
[1765134901932,0.00161287,91546.0,91545.0,0.21847178]
[1765134902134,0.00161287,91546.0,91545.0,0.47706578]
[1765134902578,0.00261287,91546.0,91545.0,0.47706578]
[1765134902923,0.00161287,91546.0,91545.0,0.47706578]
[1765134903127,0.02080287,91546.0,91544.0,0.465836]
[1765134903347,0.21848372,91540.0,91538.0,0.05642586]
[1765134903565,0.21848849,91538.0,91537.0,0.323]
[1765134903782,0.21849467,91536.0,91533.0,0.03918586]
[1765134903981,0.21848849,91538.0,91534.0,0.105384]
[1765134904227,0.0241143,91539.0,91536.0,0.149025]
[1765134904548,0.0241143,91539.0,91536.0,0.14730466]
[1765134904748,0.0241143,91539.0,91538.0,0.001]
[1765134904966,0.0241143,91539.0,91536.0,0.01092466]
[1765134905180,0.0241143,91539.0,91537.0,0.131633]
[1765134905360,0.0241143,91539.0,91536.0,0.139571]
[1765134906501,0.0241143,91539.0,91536.0,0.15049566]
[1765134906703,0.0241143,91539.0,91537.0,0.152278]
[1765134907300,0.0515243,91539.0,91537.0,0.152278]
[1765134907719,0.0515243,91539.0,91536.0,0.154523]
[1765134907916,0.0515243,91539.0,91537.0,0.001]
[1765134908153,0.02741,91538.0,91537.0,0.001]
[1765134908355,0.02741,91538.0,91537.0,0.159401]
[1765134908554,0.02741,91538.0,91537.0,0.158401]
[1765134908809,0.0466,91538.0,91536.0,0.122093]
[1765134909379,0.25682333,91538.0,91535.0,0.126853]
[1765134909616,0.03833454,91537.0,91534.0,0.10523]
[1765134909776,0.03833454,91537.0,91534.0,0.1161549]
[1765134909964,0.03833454,91537.0,91536.0,0.133291]
[1765134910162,0.03833454,91537.0,91534.0,0.0109249]
[1765134910163,0.02741,91537.0,91535.0,0.134563]
[1765134910634,0.02741,91537.0,91536.0,0.132049]
[1765134910958,0.0241143,91539.0,91536.0,0.001]
[1765134910959,0.01319,91539.0,91536.0,0.001]
[1765134911210,0.01319,91539.0,91538.0,0.02220398]
[1765134911772,0.01319,91539.0,91536.0,0.03312864]
[1765134911981,0.01319,91539.0,91537.0,0.331793]
[1765134912196,0.01319,91539.0,91537.0,0.264293]
[1765134912377,0.01537969,91538.0,91537.0,0.264293]
[1765134913471,0.01319,91539.0,91537.0,0.264293]
[1765134914307,0.01319,91539.0,91537.0,0.265293]
[1765134914522,0.02856969,91539.0,91537.0,0.001]
[1765134914728,0.02856969,91539.0,91537.0,0.462343]
[1765134915077,0.02856969,91539.0,91537.0,0.383862]
[1765134915275,0.01319,91539.0,91537.0,0.383862]
[1765134915478,0.03949399,91539.0,91536.0,0.283897]
[1765134915684,0.00161287,91540.0,91537.0,0.22941542]
[1765134915915,0.01253705,91540.0,91537.0,0.01192454]
[1765134916296,0.00161287,91540.0,91537.0,0.01192454]
[1765134916502,0.00161287,91540.0,91539.0,0.02220398]
[1765134916725,0.00161287,91540.0,91539.0,0.51780198]
[1765134917042,0.04005263,91553.0,91547.0,0.01092335]
[1765134917238,0.00023373,91556.0,91547.0,0.01092335]
[1765134917239,0.00023373,91556.0,91548.0,0.21846463]
[1765134917538,0.00023373,91556.0,91549.0,0.70715998]
[1765134917756,0.00023373,91556.0,91549.0,0.73543998]
[1765134918346,0.0024,91550.0,91549.0,0.73543998]
[1765134918497,0.0024,91550.0,91549.0,0.713236]
[1765134918703,0.0024,91550.0,91549.0,0.73543998]
[1765134918933,0.0024,91550.0,91549.0,0.77462584]
[1765134919141,0.0054,91550.0,91549.0,0.77462584]
[1765134919357,0.0004,91550.0,91549.0,0.73543998]
[1765134919723,0.0004,91550.0,91549.0,0.73943998]
[1765134923389,0.0004,91550.0,91549.0,0.74381216]
[1765134925376,0.0004,91550.0,91549.0,0.80256325]
[1765134926340,0.0004,91550.0,91549.0,0.74381216]
[1765134929457,0.0004,91550.0,91549.0,0.9496397]
[1765134935791,0.0004,91550.0,91549.0,0.327]
[1765134936115,0.05028287,91550.0,91549.0,0.327]
[1765134936294,0.05028287,91550.0,91549.0,0.004]
[1765134937308,0.01092418,91540.0,91536.0,0.01092466]
[1765134937802,0.01092347,91546.0,91540.0,0.29251]
[1765134937803,0.01092358,91545.0,91540.0,0.29251]
[1765134938016,0.0109237,91544.0,91541.0,0.01092406]
[1765134938461,0.22940038,91543.0,91541.0,0.275118]
[1765134938652,0.22940038,91543.0,91540.0,0.29251]